[Event "Championnat d'Europe de Blitz"]
[Date "2024.12.09"]
[White "Djurovic, Peko"]
[Black "Danov, Lyubomir"]
[WhiteElo "2253"]
[BlackElo "2297"]
[Round "13.52"]
[Result "0-1"]
[TimeControl "180+2"]

1. e4 {[%clk 00:03:02]} e5 {[%clk 00:03:03]} 2. Nf3 {[%emt 00:00:02] [%clk
00:03:02]} Nc6 {[%emt 00:00:01] [%clk 00:03:04]} 3. d4 {[%emt 00:00:04] [%clk
00:03:00]} exd4 {[%emt 00:00:03] [%clk 00:03:03]} 4. Bc4 {[%emt 00:00:02] [%clk
00:03:01]} Nf6 {[%emt 00:00:02] [%clk 00:03:02]} 5. O-O {[%emt 00:00:02] [%clk
00:03:01]} d6 {[%emt 00:00:07] [%clk 00:02:58]} 6. Nxd4 {[%emt 00:00:02] [%clk
00:03:01]} Be7 {[%emt 00:00:01] [%clk 00:02:59]} 7. Nc3 {[%emt 00:00:04] [%clk
00:02:59]} O-O {[%emt 00:00:02] [%clk 00:02:59]} 8. Nxc6 {[%emt 00:00:03] [%clk
00:02:57]} bxc6 {[%emt 00:00:02] [%clk 00:03:00]} 9. Qf3 {[%emt 00:00:04] [%clk
00:02:56]} Nd7 {[%emt 00:00:04] [%clk 00:02:57]} 10. Bf4 {[%emt 00:00:30] [%clk
00:02:28]} Bf6 {[%emt 00:00:02] [%clk 00:02:57]} 11. Bb3 {[%emt 00:00:18] [%clk
00:02:12]} a5 {[%emt 00:00:10] [%clk 00:02:49]} 12. a4 {[%emt 00:00:34] [%clk
00:01:40]} Rb8 {[%emt 00:00:05] [%clk 00:02:46]} 13. Rfd1 {[%emt 00:00:03] [%clk
00:01:39]} Qe8 {[%emt 00:00:09] [%clk 00:02:39]} 14. Rab1 {[%emt 00:00:06] [%clk
00:01:35]} Nc5 {[%emt 00:00:06] [%clk 00:02:35]} 15. Bc4 {[%emt 00:00:01] [%clk
00:01:35]} Bxc3 {[%emt 00:00:37] [%clk 00:02:00]} 16. bxc3 {[%emt 00:00:05]
[%clk 00:01:33]} Rxb1 {[%emt 00:00:02] [%clk 00:02:00]} 17. Rxb1 {[%emt
00:00:01] [%clk 00:01:34]} Qxe4 {[%emt 00:00:07] [%clk 00:01:54]} 18. Qxe4
{[%emt 00:00:18] [%clk 00:01:18]} Nxe4 {[%emt 00:00:01] [%clk 00:01:54]} 19. Rb8
{[%emt 00:00:42] [%clk 00:00:39]} Be6 {[%emt 00:00:08] [%clk 00:01:48]} 20.
Rxf8+ {[%emt 00:00:02] [%clk 00:00:39]} Kxf8 {[%emt 00:00:01] [%clk 00:01:49]}
21. Bxe6 {[%emt 00:00:02] [%clk 00:00:40]} fxe6 {[%emt 00:00:01] [%clk
00:01:50]} 22. c4 {[%clk 00:00:41]} Ke7 {[%emt 00:00:12] [%clk 00:01:39]} 23.
Kf1 {[%emt 00:00:07] [%clk 00:00:36]} Nc3 {[%emt 00:00:04] [%clk 00:01:37]} 24.
Bd2 {[%emt 00:00:02] [%clk 00:00:36]} Nxa4 {[%emt 00:00:02] [%clk 00:01:38]} 25.
Bxa5 {[%emt 00:00:01] [%clk 00:00:37]} Kd7 {[%emt 00:00:09] [%clk 00:01:31]} 26.
Bb4 {[%emt 00:00:01] [%clk 00:00:38]} c5 {[%emt 00:00:12]} 27. Ba5 {[%clk
00:00:31]} Nb2 {[%emt 00:00:02] [%clk 00:01:33]} 28. Bc3 {[%emt 00:00:01] [%clk
00:00:31]} Nxc4 {[%emt 00:00:03] [%clk 00:01:33]} 29. Bxg7 {[%emt 00:00:01]
[%clk 00:00:32]} e5 {[%emt 00:00:04] [%clk 00:01:31]} 30. g4 {[%emt 00:00:02]
[%clk 00:00:33]} e4 {[%emt 00:00:04] [%clk 00:01:28]} 31. Ke2 {[%emt 00:00:02]
[%clk 00:00:34]} Ke6 {[%emt 00:00:02] [%clk 00:01:28]} 32. h4 {[%clk 00:00:34]}
Ne5 {[%emt 00:00:07] [%clk 00:01:24]} 33. g5 {[%emt 00:00:29] [%clk 00:00:07]}
Nf3 {[%emt 00:00:04] [%clk 00:01:22]} 34. Ke3 {[%emt 00:00:01] [%clk 00:00:08]}
d5 {[%clk 00:01:23]} 35. c4 {[%emt 00:00:04] [%clk 00:00:06]} c6 {[%emt
00:00:07] [%clk 00:01:18]} 36. Bf8 {[%clk 00:00:07]} Nxh4 {[%emt 00:00:03] [%clk
00:01:16]} 37. Bxc5 {[%emt 00:00:01] [%clk 00:00:08]} Ke5 {[%emt 00:00:11] [%clk
00:01:08]} 38. Bd4+ {[%emt 00:00:07] [%clk 00:00:03]} Kf5 {[%emt 00:00:01] [%clk
00:01:08]} 39. cxd5 {[%clk 00:00:04]} cxd5 {[%clk 00:01:09]} 40. Bf6 {[%emt
00:00:03] [%clk 00:00:03]} Nf3 {[%emt 00:00:02] [%clk 00:01:09]} 41. Bd8 {[%clk
00:00:04]} Nxg5 {[%emt 00:00:03] [%clk 00:01:08]} 42. Kd4 {[%clk 00:00:06]} Ne6+
{[%emt 00:00:01]} 0-1

[Site "Europe Echecs"]

[Event "Championnat d'Europe de Blitz"]
[Date "2024.12.09"]
[White "Dobrikov, Marco"]
[Black "Radovanovic, Dusan"]
[WhiteElo "2407"]
[BlackElo "2274"]
[Round "13.53"]
[Result "1-0"]
[TimeControl "180+2"]

1. d3 {[%clk 00:03:02]} d5 {[%emt 00:00:05] [%clk 00:02:59]} 2. Nd2 {[%emt
00:00:02] [%clk 00:03:03]} Nf6 {[%emt 00:00:02] [%clk 00:02:58]} 3. Ngf3 {[%emt
00:00:03] [%clk 00:03:02]} e6 {[%emt 00:00:02] [%clk 00:02:58]} 4. g3 {[%emt
00:00:02] [%clk 00:03:02]} Be7 {[%emt 00:00:01] [%clk 00:02:59]} 5. Bg2 {[%emt
00:00:01] [%clk 00:03:03]} O-O {[%emt 00:00:02] [%clk 00:03:00]} 6. O-O {[%emt
00:00:02] [%clk 00:03:03]} Nc6 {[%emt 00:00:01] [%clk 00:03:01]} 7. e4 {[%clk
00:03:03]} dxe4 {[%clk 00:03:02]} 8. dxe4 {[%clk 00:03:04]} e5 {[%clk 00:03:04]}
9. c3 {[%emt 00:00:03] [%clk 00:03:04]} a5 {[%clk 00:03:06]} 10. a4 {[%emt
00:00:04] [%clk 00:03:02]} Be6 {[%emt 00:00:02] [%clk 00:03:05]} 11. Qc2 {[%emt
00:00:04] [%clk 00:03:00]} Bc5 {[%emt 00:00:12] [%clk 00:02:56]} 12. Ng5 {[%emt
00:00:13] [%clk 00:02:49]} Bd7 {[%emt 00:00:07] [%clk 00:02:50]} 13. Nc4 {[%emt
00:00:06] [%clk 00:02:45]} h6 {[%emt 00:00:36] [%clk 00:02:16]} 14. Nf3 {[%emt
00:00:01] [%clk 00:02:46]} Qe7 {[%emt 00:00:07] [%clk 00:02:12]} 15. Nh4 {[%emt
00:00:10] [%clk 00:02:37]} Rad8 {[%emt 00:00:28] [%clk 00:01:46]} 16. Ne3 {[%emt
00:00:05] [%clk 00:02:34]} Be6 {[%emt 00:00:14] [%clk 00:01:34]} 17. Nhf5 {[%emt
00:00:04] [%clk 00:02:32]} Qd7 {[%emt 00:00:06] [%clk 00:01:31]} 18. Rd1 {[%emt
00:00:17] [%clk 00:02:15]} Qc8 {[%emt 00:00:02] [%clk 00:01:33]} 19. Bd2 {[%emt
00:00:05] [%clk 00:02:12]} Rfe8 {[%emt 00:00:04] [%clk 00:01:30]} 20. Be1 {[%emt
00:00:02] [%clk 00:02:11]} h5 {[%emt 00:00:09] [%clk 00:01:23]} 21. Rxd8 {[%emt
00:00:02] [%clk 00:02:11]} Rxd8 {[%emt 00:00:02] [%clk 00:01:24]} 22. Rd1 {[%emt
00:00:02] [%clk 00:02:11]} Rxd1 {[%emt 00:00:06] [%clk 00:01:21]} 23. Qxd1
{[%emt 00:00:01] [%clk 00:02:11]} g6 {[%emt 00:00:02] [%clk 00:01:21]} 24. Nh4
{[%emt 00:00:12] [%clk 00:02:01]} Ng4 {[%emt 00:00:17] [%clk 00:01:06]} 25. Nxg4
{[%emt 00:00:08] [%clk 00:01:55]} hxg4 {[%emt 00:00:06] [%clk 00:01:02]} 26. Bf1
{[%emt 00:00:09] [%clk 00:01:48]} Kg7 {[%emt 00:00:02] [%clk 00:01:02]} 27. Bd2
{[%emt 00:00:06] [%clk 00:01:45]} Qd7 {[%emt 00:00:10] [%clk 00:00:53]} 28. Qe2
{[%emt 00:00:02] [%clk 00:01:44]} f6 {[%emt 00:00:08] [%clk 00:00:48]} 29. Ng2
{[%emt 00:00:05] [%clk 00:01:41]} Ne7 {[%emt 00:00:08] [%clk 00:00:43]} 30. Be3
{[%emt 00:00:04] [%clk 00:01:39]} Bxe3 {[%emt 00:00:04] [%clk 00:00:41]} 31.
Nxe3 {[%emt 00:00:01] [%clk 00:01:39]} Qxa4 {[%emt 00:00:04] [%clk 00:00:39]}
32. Nxg4 {[%emt 00:00:02] [%clk 00:01:39]} Qd7 {[%emt 00:00:18] [%clk 00:00:23]}
33. Ne3 {[%emt 00:00:02] [%clk 00:01:39]} c6 {[%emt 00:00:01] [%clk 00:00:25]}
34. h4 {[%emt 00:00:02] [%clk 00:01:38]} b5 {[%emt 00:00:04] [%clk 00:00:23]}
35. h5 {[%emt 00:00:01] [%clk 00:01:39]} g5 {[%emt 00:00:02] [%clk 00:00:24]}
36. Qf3 {[%emt 00:00:11] [%clk 00:01:30]} Ng8 {[%emt 00:00:02] [%clk 00:00:24]}
37. Qe2 {[%emt 00:00:15] [%clk 00:01:16]} Nh6 {[%emt 00:00:01] [%clk 00:00:25]}
38. f3 {[%emt 00:00:08] [%clk 00:01:10]} Qd6 {[%emt 00:00:01] [%clk 00:00:27]}
39. Kf2 {[%emt 00:00:08] [%clk 00:01:04]} Qc5 {[%clk 00:00:28]} 40. Qc2 {[%clk
00:01:05]} g4 {[%emt 00:00:04] [%clk 00:00:26]} 41. Be2 {[%emt 00:00:02] [%clk
00:01:05]} gxf3 {[%clk 00:00:27]} 42. Bxf3 {[%clk 00:01:06]} a4 {[%emt 00:00:03]
[%clk 00:00:26]} 43. Qd2 {[%emt 00:00:02] [%clk 00:01:06]} Nf7 {[%emt 00:00:12]
[%clk 00:00:17]} 44. Kg2 {[%emt 00:00:03] [%clk 00:01:05]} Ng5 {[%emt 00:00:01]
[%clk 00:00:18]} 45. Qd3 {[%emt 00:00:17] [%clk 00:00:49]} b4 {[%emt 00:00:06]
[%clk 00:00:15]} 46. Bg4 {[%emt 00:00:09] [%clk 00:00:42]} bxc3 {[%emt 00:00:04]
[%clk 00:00:13]} 47. bxc3 {[%emt 00:00:10] [%clk 00:00:34]} Bxg4 {[%emt
00:00:03] [%clk 00:00:11]} 48. Nxg4 {[%emt 00:00:01] [%clk 00:00:35]} Qe7 {[%emt
00:00:05] [%clk 00:00:09]} 49. Ne3 {[%emt 00:00:02] [%clk 00:00:34]} Qa7 {[%emt
00:00:02] [%clk 00:00:10]} 50. Nf5+ {[%emt 00:00:01] [%clk 00:00:34]} Kh7 {[%emt
00:00:02] [%clk 00:00:10]} 51. Qd8 {[%emt 00:00:04] [%clk 00:00:33]} Nxe4 {[%emt
00:00:04] [%clk 00:00:07]} 52. Kh3 {[%emt 00:00:14] [%clk 00:00:20]} Nf2+ {[%emt
00:00:02] [%clk 00:00:08]} 53. Kh4 {[%emt 00:00:02] [%clk 00:00:20]} Ne4 {[%emt
00:00:01] [%clk 00:00:10]} 54. Qf8 {[%emt 00:00:03] [%clk 00:00:18]} Qd7 {[%emt
00:00:03] [%clk 00:00:10]} 55. Qh6+ {[%emt 00:00:02] [%clk 00:00:18]} Kg8 {[%clk
00:00:11]} 56. Qg6+ {[%clk 00:00:19]} Kf8 {[%emt 00:00:01] [%clk 00:00:12]} 57.
h6 {[%emt 00:00:02] [%clk 00:00:20]} Nd6 {[%emt 00:00:01] [%clk 00:00:13]} 58.
Qxf6+ {[%emt 00:00:03] [%clk 00:00:19]} Kg8 {[%emt 00:00:02] [%clk 00:00:13]}
59. Qg6+ {[%emt 00:00:04] [%clk 00:00:16]} Kh8 {[%emt 00:00:01] [%clk 00:00:14]}
60. Nxd6 {[%emt 00:00:04] [%clk 00:00:14]} Qe7+ {[%emt 00:00:02] [%clk
00:00:15]} 61. Kh3 {[%emt 00:00:02] [%clk 00:00:14]} a3 {[%emt 00:00:01] [%clk
00:00:16]} 62. Nf7+ {[%emt 00:00:02] [%clk 00:00:13]}

[Site "Europe Echecs"]

[Event "Championnat d'Europe de Blitz"]
[Date "2024.12.09"]
[White "Fromm, Marius"]
[Black "Mohammad, Fahim"]
[WhiteElo "2459"]
[BlackElo "2196"]
[Round "13.54"]
[Result "1-0"]
[TimeControl "180+2"]

1. e4 {[%clk 00:03:02]} c5 {[%clk 00:03:03]} 2. Nf3 {[%clk 00:03:03]} e6 {[%emt
00:00:02] [%clk 00:03:04]} 3. g3 {[%emt 00:00:03] [%clk 00:03:02]} Nc6 {[%emt
00:00:04] [%clk 00:03:03]} 4. Bg2 {[%clk 00:03:03]} d6 {[%emt 00:00:14] [%clk
00:02:51]} 5. O-O {[%emt 00:00:04] [%clk 00:03:01]} Nge7 {[%emt 00:00:03] [%clk
00:02:50]} 6. b3 {[%emt 00:00:16] [%clk 00:02:47]} e5 {[%emt 00:01:00] [%clk
00:01:52]} 7. c3 {[%clk 00:02:48]} g6 {[%emt 00:00:06] [%clk 00:01:48]} 8. d4
{[%emt 00:00:06] [%clk 00:02:45]} Bg7 {[%emt 00:00:06] [%clk 00:01:44]} 9. dxc5
{[%emt 00:00:04] [%clk 00:02:43]} dxc5 {[%emt 00:00:01] [%clk 00:01:44]} 10.
Qxd8+ {[%emt 00:00:02] [%clk 00:02:44]} Nxd8 {[%emt 00:00:10] [%clk 00:01:36]}
11. Na3 {[%emt 00:00:02] [%clk 00:02:43]} O-O {[%emt 00:00:07] [%clk 00:01:31]}
12. Nc4 {[%emt 00:00:01] [%clk 00:02:44]} Ndc6 {[%emt 00:00:02] [%clk 00:01:31]}
13. Nd6 {[%emt 00:00:08] [%clk 00:02:38]} b6 {[%emt 00:00:27] [%clk 00:01:06]}
14. Nxc8 {[%emt 00:00:02] [%clk 00:02:38]} Raxc8 {[%clk 00:01:08]} 15. Rd1
{[%emt 00:00:05] [%clk 00:02:35]} Rfd8 {[%emt 00:00:02] [%clk 00:01:08]} 16. Be3
{[%emt 00:00:02] [%clk 00:02:34]} Rxd1+ {[%emt 00:00:13] [%clk 00:00:58]} 17.
Rxd1 {[%emt 00:00:01] [%clk 00:02:35]} Rd8 {[%clk 00:01:00]} 18. Rxd8+ {[%emt
00:00:08] [%clk 00:02:29]} Nxd8 {[%clk 00:01:01]} 19. Bf1 {[%emt 00:00:10] [%clk
00:02:22]} Kf8 {[%emt 00:00:07] [%clk 00:00:55]} 20. Nd2 {[%emt 00:00:06] [%clk
00:02:18]} Nec6 {[%emt 00:00:20] [%clk 00:00:37]} 21. Nc4 {[%emt 00:00:20] [%clk
00:02:01]} Ke7 {[%emt 00:00:01] [%clk 00:00:38]} 22. a4 {[%emt 00:00:02] [%clk
00:02:01]} f6 {[%emt 00:00:08] [%clk 00:00:31]} 23. h4 {[%emt 00:00:02] [%clk
00:02:01]} Nb7 {[%emt 00:00:07] [%clk 00:00:26]} 24. Kg2 {[%emt 00:00:24] [%clk
00:01:40]} Nd6 {[%clk 00:00:27]} 25. Nxd6 {[%emt 00:00:06] [%clk 00:01:36]} Kxd6
{[%clk 00:00:28]} 26. Bc4 {[%emt 00:00:02] [%clk 00:01:37]} Ne7 {[%emt 00:00:07]
[%clk 00:00:23]} 27. h5 {[%emt 00:00:06] [%clk 00:01:32]} Bf8 {[%emt 00:00:15]
[%clk 00:00:11]} 28. Kf3 {[%emt 00:00:08] [%clk 00:01:26]} f5 {[%emt 00:00:06]
[%clk 00:00:06]} 29. Bg5 {[%emt 00:00:10] [%clk 00:01:17]} Bg7 {[%emt 00:00:04]
[%clk 00:00:05]} 30. Bf7 {[%emt 00:00:17] [%clk 00:01:02]} gxh5 {[%emt 00:00:03]
[%clk 00:00:04]} 31. Bxh5 {[%emt 00:00:06] [%clk 00:00:58]} fxe4+ {[%emt
00:00:01] [%clk 00:00:06]} 32. Kxe4 {[%emt 00:00:02] [%clk 00:00:58]} Nd5 {[%clk
00:00:07]} 33. Kd3 {[%emt 00:00:08] [%clk 00:00:52]} e4+ {[%emt 00:00:01] [%clk
00:00:09]} 34. Kxe4 {[%emt 00:00:04] [%clk 00:00:50]} Nxc3+ {[%clk 00:00:10]}
35. Kf5 {[%emt 00:00:08] [%clk 00:00:43]} Nd5 {[%emt 00:00:01] [%clk 00:00:11]}
36. Bf7 {[%emt 00:00:08] [%clk 00:00:37]} Nc7 {[%emt 00:00:01] [%clk 00:00:12]}
37. Bf4+ {[%emt 00:00:03] [%clk 00:00:36]} Kc6 {[%emt 00:00:02] [%clk 00:00:13]}
38. Bg8 {[%emt 00:00:04] [%clk 00:00:33]} h6 {[%emt 00:00:09] [%clk 00:00:06]}
39. Kg6 {[%clk 00:00:34]} Bd4 {[%clk 00:00:07]} 40. f3 {[%emt 00:00:03] [%clk
00:00:33]} a6 {[%clk 00:00:08]} 41. Kxh6 {[%emt 00:00:05] [%clk 00:00:30]} b5
{[%emt 00:00:01] [%clk 00:00:10]} 42. axb5+ {[%emt 00:00:02] [%clk 00:00:30]}
axb5 {[%clk 00:00:11]} 43. g4 {[%emt 00:00:02] [%clk 00:00:31]} Nd5 {[%emt
00:00:02] [%clk 00:00:10]} 44. Bxd5+ {[%emt 00:00:09] [%clk 00:00:24]} Kxd5
{[%clk 00:00:12]} 45. g5 {[%emt 00:00:02] [%clk 00:00:24]} c4 {[%emt 00:00:02]
[%clk 00:00:12]} 46. bxc4+ {[%clk 00:00:24]} bxc4 {[%emt 00:00:02] [%clk
00:00:13]} 47. g6 {[%emt 00:00:02] [%clk 00:00:23]} Ke6 {[%emt 00:00:03] [%clk
00:00:13]} 48. Kg5 {[%emt 00:00:09] [%clk 00:00:16]} Bb2 {[%clk 00:00:14]} 49.
Be3 {[%emt 00:00:07] [%clk 00:00:11]} Bf6+ {[%emt 00:00:08] [%clk 00:00:08]} 50.
Kh6 {[%emt 00:00:02] [%clk 00:00:09]} Kf5 {[%emt 00:00:03] [%clk 00:00:09]} 51.
g7 {[%emt 00:00:03] [%clk 00:00:08]} Bxg7+ {[%emt 00:00:01] [%clk 00:00:10]} 52.
Kxg7 {[%emt 00:00:01] [%clk 00:00:09]} c3 {[%emt 00:00:01] [%clk 00:00:11]} 53.
Bc1 {[%emt 00:00:03] [%clk 00:00:08]} c2 {[%emt 00:00:08] [%clk 00:00:05]} 54.
Kh6 {[%emt 00:00:01] [%clk 00:00:08]} Ke5 {[%emt 00:00:01] [%clk 00:00:06]} 55.
Kg5 {[%clk 00:00:10]} Kd4 {[%emt 00:00:04] [%clk 00:00:04]} 56. f4 {[%emt
00:00:01] [%clk 00:00:11]} 1-0